[Event "Hungarian Championship Men 2022"]
[Site "Budapest"]
[Date "2022.12.12"]
[Round "8.3"]
[White "Fodor, Tamas Jr."]
[Black "Horvath, Csaba"]
[Result "0-1"]
[ECO "E15"]
[WhiteElo "2517"]
[BlackElo "2502"]
[Annotator "TA"]
[PlyCount "104"]
[EventDate "2022.12.03"]
[EventType "tourn"]
[EventCountry "HUN"]
[SourceTitle "playchess.com"]
[Source "ChessBase"]
[SourceQuality "1"]
[TimeControl "40/5400+30:1800+30"]

{[%evp 12,104,10,13,19,16,8,0,0,-18,-10,-12,-15,-22,0,0,0,-8,-24,-29,21,-220,-210,-197,-199,-190,-48,-85,-92,-90,-77,-111,-111,-111,-113,-136,-134,-141,-131,-128,-12,-20,-20,-38,0,0,0,0,0,0,0,-147,-143,-132,0,0,328,-115,-91,-105,-98,-429,-438,-437,-434,-425,-434,-413,-415,-406,-397,-373,-341,-331,-314,-310,-314,-506,-477,-552,-560,-551,-533,-518,-487,-645,-748,-1086,-808,-945,-953,-1014,-1010,-852,-361]} 1. d4 {[%emt 0:00:34]} Nf6 {[%emt 0:03:34]} 2. c4 {[%emt 0:00:11]} e6 {[%emt 0:00:22]} 3. Nf3 {[%emt 0:00:06]} b6 {[%emt 0:01:58]} 4. g3 {[%emt 0:00:34]} Bb4+ {[%emt 0:00:42]} 5. Bd2 {[%emt 0:02:36]} Be7 {[%emt 0:00:45]} 6. Bg2 {[%emt 0:01:05]} c6 {[%emt 0:01:26]} 7. O-O {[%emt 0:05:17]} d5 {[%emt 0:04:09] E15: Queen's Indian: 4 g3 sidelines, 4 g3 Ba6 and 4 g3 Bb7 early deviations.} 8. Nc3 {[%emt 0:05:51]} O-O {[%emt 0:02:29]} 9. Qc2 {[%emt 0:02:25]} Nbd7 {[%emt 0:21:25] The position is equal.} 10. e4 {[%emt 0:00:34]} dxc4 {[%emt 0:00:24]} 11. e5 {[%emt 0:05:37]} Nd5 {[%emt 0:00:34]} 12. Ne4 {[%emt 0:00:05]} Ba6 {[%emt 0:06:19]} 13. Neg5 {[%emt 0:05:35][%csl Gg5][%cal Rc2h7]} g6 {[%emt 0:00:21]} 14. h4 {[%emt 0:00:07]} c5 {[%emt 0:06:07] [#]} 15. Rfe1 $146 {[%emt 0:05:08][%cal Oh4h5]} ({Predecessor:} 15. Rad1 Qe8 16. h5 Rd8 17. Qa4 Nb8 18. Qc2 Nd7 19. Qa4 Nb8 20. Qc2 Nd7 {½-½ (20) Beecham,C (2478)-James,A (2400) ICCF email 2020}) 15... Rc8 {[%emt 0:01:14]} (15... cxd4 $142 16. Nxd4 Nc5) 16. Bh3 $2 {[%emt 0:15:58]} (16. h5 $1 $11 Qe8 17. Qa4) 16... cxd4 $19 {[%emt 0:05:55]} 17. Nxd4 {[%emt 0:04:54]} Nc5 {[%emt 0:01:37]} 18. Rad1 {[%emt 0:00:07]} Bb7 {[%emt 0:05:53]} ({Black should try} 18... Nd3 $19 {Hoping for ...Bc5.} 19. Re4 b5) 19. Bf1 {[%emt 0:07:44]} Nd3 {[%emt 0:02:30]} 20. Bxd3 {[%emt 0:01:18]} cxd3 {[%emt 0:00:12]} 21. Qxd3 {[%emt 0:00:04]} Nb4 {[%emt 0:01:28]} 22. Bxb4 {[%emt 0:06:27]} Bxb4 {[%emt 0:00:03]} 23. Ne4 {[%emt 0:01:07]} Bxe1 {[%emt 0:06:59] A strong pair of Bishops.} 24. Nf6+ {[%emt 0:00:04]} Kg7 $1 {[%emt 0:00:10]} 25. Rxe1 {[%emt 0:00:04]} Qc7 {[%emt 0:00:37]} ({Better is} 25... Rc5 $17 {[%cal Oc5e5] White must now prevent ...Rxe5!} 26. Qe3 Rxe5 $3 {[%mdl 512]} 27. Qxe5 Qxf6) 26. Qe3 $11 {[%emt 0:04:10]} Rfd8 {[%emt 0:00:52]} (26... Qc4 {with more complications.} 27. Nh5+ Kh8 28. Nf6 Rg8) 27. Ng4 $1 {[%emt 0:05:04] Threatening mate with Qh6+.} Kf8 {[%emt 0:08:22]} (27... Kh8 $5 {[%cal Rd8d4]} 28. Nf6 Kg7 $15) 28. Qh6+ $1 {[%emt 0:04:04]} Ke7 $1 {[%emt 0:00:26]} (28... Ke8 $2 29. Nxe6 $1 {[%mdl 512]} Kd7 30. Nxc7 $18) 29. Qg5+ $1 {[%emt 0:00:37]} (29. Qf4 Qc4 30. Nh6 Rxd4 $17) 29... Kf8 {[%emt 0:00:10]} (29... Ke8 $5 30. Nf6+ $8 Kf8 31. Qh6+ Ke7 $11) 30. Qh6+ {[%emt 0:09:21]} Ke7 $1 {[%emt 0:00:11]} (30... Ke8 $2 31. Nxe6 $1 {[%mdl 512]} Kd7 32. Nxc7 $18) 31. Qf4 {[%emt 0:01:54]} (31. Qg5+ $1 $11 {was the only way to keep the balance.} Ke8 32. Nf6+ Kf8 33. Qh6+ Ke7 34. Qg5) 31... Qc4 $1 $17 {[%emt 0:09:35][%csl LRa2,LRd4]} (31... Ke8 32. Nf6+ Kf8 33. h5 $14 (33. Nxh7+ Kg7 $15)) 32. Nh6 {[%emt 0:04:57][%csl Gh6][%cal Rf4f7]} Rf8 {[%emt 0:00:58]} (32... Qxd4 $2 33. Qxf7#) (32... Rxd4 $17 33. Qxf7+ Kd8 34. Qxb7 Rd7) 33. Rd1 $11 {[%emt 0:00:22]} f6 {[%emt 0:06:35][%mdl 8192] Prevents Qg5.} (33... Qxa2 34. Qf6+ (34. Nb5 Bd5 $16) 34... Ke8 35. Ng8 $1 Rxg8 36. Nb5 $18) (33... Qd5 $1 $11 34. Ndf5+ (34. f3 f6 $11) 34... exf5 35. Rxd5 Bxd5) 34. Ng4 $2 {[%emt 0:02:49] [#]} ({Only move:} 34. exf6+ $18 Rxf6 35. Ng8+ $1 {[%mdl 512]} Rxg8 36. Nf5+ $1 {[%mdl 512]} Rxf5 37. Qxc4) 34... fxe5 $1 $17 {[%emt 0:00:03]} (34... Qxa2 $2 35. exf6+ Ke8 36. Qd6 $18) ({But not} 34... f5 35. Nf6 (35. Qg5+ Kf7 $18) 35... Rxf6 36. Qg5 $18 (36. exf6+ Kxf6 37. Qg5+ Kf7 $11)) 35. Qg5+ {[%emt 0:00:25]} Ke8 {[%emt 0:00:29]} 36. Nf6+ $2 {[%emt 0:00:26][%mdl 8192] [#]} (36. Ne3 $17 {was the crucial defense.} Qxd4 37. Rxd4 exd4 38. Qe5) 36... Rxf6 $1 $19 {[%emt 0:02:25]} 37. Qxf6 {[%emt 0:00:04]} Qd5 {[%emt 0:00:47][%csl Gb7][%cal Rd5h1]} (37... exd4 38. Qh8+ Kf7 39. Qxh7+ Kf6 40. Qxb7 $11) 38. Qxe6+ {[%emt 0:01:11]} Qxe6 {[%emt 0:00:03]} ({Stronger than} 38... Kf8 39. Qxd5 Bxd5 40. Nb3 $15) 39. Nxe6 {[%emt 0:00:03][%mdl 4096] Endgame KRB-KRN} h6 {[%emt 0:01:01] Against Ng5} 40. f4 {[%emt 0:00:00]} Ke7 {[%emt 0:00:00]} 41. f5 gxf5 {[%emt 0:08:45]} 42. Ng7 {[%emt 0:06:43]} Be4 {[%emt 0:01:19]} 43. Rf1 {[%emt 0:01:44]} Rf8 {[%emt 0:05:34]} 44. Rc1 $2 {[%emt 0:00:22]} (44. g4 fxg4 45. Rxf8 Kxf8 46. Nh5) 44... Kf6 {[%emt 0:09:46] Black is clearly winning.} 45. Rc7 {[%emt 0:00:14]} Bf3 {[%emt 0:02:01]} 46. Kf2 {[%emt 0:00:12]} Bg4 {[%emt 0:01:41]} 47. Rxa7 {[%emt 0:00:36]} Rg8 {[%emt 0:00:25]} 48. Nxf5 {[%emt 0:00:31]} Kxf5 {[%emt 0:00:16]} 49. Rb7 {[%emt 0:01:37]} Rg6 {[%emt 0:00:31] ...Ke4 is the strong threat.} 50. Ke3 {[%emt 0:00:40]} Bh5 {[%emt 0:00:46]} 51. Rf7+ {[%emt 0:00:19]} Ke6 {[%emt 0:00:25]} 52. Rb7 {[%emt 0:00:08]} Kd5 {[%emt 0:00:27] Weighted Error Value: White=0.50/Black=0.29 (precise)} (52... Rxg3+ $142 53. Kf2 Rf3+ 54. Kg2 Kf5 55. Rxb6 Rd3 56. Rxh6 Bf7) 0-1

[Event "Hungarian Championship Men 2022"]
[Site "Budapest"]
[Date "2022.12.12"]
[Round "8.4"]
[White "Papp, Gabor"]
[Black "Prohaszka, Peter"]
[Result "1/2-1/2"]
[ECO "A15"]
[WhiteElo "2564"]
[BlackElo "2562"]
[Annotator "TA"]
[PlyCount "64"]
[EventDate "2022.12.03"]
[EventType "tourn"]
[EventCountry "HUN"]
[SourceTitle "playchess.com"]
[Source "ChessBase"]
[SourceQuality "1"]
[TimeControl "40/5400+30:1800+30"]

{[%evp 23,64,0,4,0,0,0,0,0,0,0,0,0,0,0,0,-5,-5,-5,0,0,0,0,0,0,0,0,0,0,0,-20,0,0,0,0,0,0,0,0,0,0,0,0,0]} 1. c4 {[%emt 0:00:33]} Nf6 {[%emt 0:00:36]} 2. Nf3 {[%emt 0:00:12]} c5 {[%emt 0:00:55]} 3. g3 {[%emt 0:00:16]} b6 {[%emt 0:00:06]} 4. Bg2 {[%emt 0:00:24]} Bb7 {[%emt 0:00:04]} 5. O-O {[%emt 0:00:08]} g6 {[%emt 0:01:43]} 6. b3 {[%emt 0:00:39]} Bg7 {[%emt 0:00:13]} 7. Bb2 {[%emt 0:00:07]} O-O {[%emt 0:00:18]} 8. Nc3 {[%emt 0:00:50]} d5 {[%emt 0:00:23]} 9. Nxd5 {[%emt 0:00:15]} Nxd5 {[%emt 0:00:10]} 10. Bxg7 {[%emt 0:00:10]} Kxg7 {[%emt 0:00:08]} 11. cxd5 {[%emt 0:00:22]} Qxd5 {[%emt 0:00:29]} 12. d4 {[%emt 0:00:30]} Na6 {[%emt 0:01:39] The position is equal.} (12... cxd4 {simplifies} 13. Qxd4+ Qxd4 14. Nxd4 Bxg2 15. Kxg2 Nd7) 13. Nh4 {[%emt 0:01:07] A30: Symmetrical English: Double Fianchetto and Hedgehog.} Qd7 {[%emt 0:00:10]} 14. dxc5 {[%emt 0:01:01]} Qxd1 {[%emt 0:00:12]} 15. Rfxd1 {[%emt 0:00:07]} Bxg2 {[%emt 0:00:08]} 16. Nxg2 {[%emt 0:00:05]} Nxc5 {[%emt 0:00:05]} 17. b4 {[%emt 0:00:15] [#]} Ne6 $146 {[%emt 0:01:57]} ({Predecessor:} 17... Na6 18. a3 Rfd8 19. Nf4 Nc7 20. Rxd8 Rxd8 21. Rc1 Rd7 22. f3 e5 23. Nd3 f6 24. a4 Kf7 25. Kf2 Ne6 26. Rc8 Rd8 27. Rc3 Rd7 28. Rc8 Rd8 29. Rc3 {½-½ (29) Malakhov,V (2722)-Ivanchuk,V (2729) Danzhou 2017}) 18. Rd7 {[%emt 0:00:37]} Rfe8 {[%emt 0:00:23]} 19. Nf4 {[%emt 0:01:13]} Nxf4 {[%emt 0:00:29]} 20. gxf4 $11 {[%emt 0:00:06][%mdl 4096] Endgame KRR-KRR} Kf8 {[%emt 0:00:32]} 21. Rc1 {[%emt 0:01:41]} Red8 {[%emt 0:01:11]} 22. Rcc7 {[%emt 0:00:13]} Rxd7 {[%emt 0:00:13]} 23. Rxd7 {[%emt 0:00:07] KR-KR} a5 {[%emt 0:01:30]} 24. b5 {[%emt 0:00:41]} Rc8 {[%emt 0:00:19]} 25. Rb7 {[%emt 0:00:22]} Rc2 {[%emt 0:00:15][%csl LRa2,LRe2]} 26. e3 {[%emt 0:00:25]} Rxa2 {[%emt 0:00:20]} 27. Rb8+ {[%emt 0:00:16]} Kg7 {[%emt 0:00:02]} 28. Rxb6 {[%emt 0:00:06]} Rb2 {[%emt 0:00:11]} 29. Kg2 {[%emt 0:00:36]} a4 {[%emt 0:00:10]} 30. Ra6 {[%emt 0:00:05]} Rxb5 {[%emt 0:00:08]} 31. Rxa4 {[%emt 0:00:03]} e5 {[%emt 0:00:35]} 32. fxe5 {[%emt 0:00:03]} Rxe5 {[%emt 0:00:04] A balanced but interesting game.   Weighted Error Value: White=0.02 (flawless) /Black=0.02 (flawless)} 1/2-1/2

[Event "Hungarian Championship Men 2022"]
[Site "Budapest"]
[Date "2022.12.12"]
[Round "8.5"]
[White "Korpa, Bence"]
[Black "Grigoriants, Sergey"]
[Result "0-1"]
[ECO "A20"]
[WhiteElo "2500"]
[BlackElo "2550"]
[Annotator "TA"]
[PlyCount "54"]
[EventDate "2022.12.03"]
[EventType "tourn"]
[EventCountry "HUN"]
[SourceTitle "playchess.com"]
[Source "ChessBase"]
[SourceQuality "1"]
[TimeControl "40/5400+30:1800+30"]

{[%evp 9,54,0,0,0,0,-4,0,0,10,2,12,-2,0,-4,22,-117,-106,-125,-129,-177,-180,-187,-185,-190,-138,-135,-96,-207,-209,-228,-239,-228,-195,-161,-167,-292,-274,-286,-278,-366,-341,-372,-360,-366,-355,-29996,-29997]} 1. c4 {[%emt 0:00:34]} e5 {[%emt 0:02:29]} 2. g3 {[%emt 0:00:23]} Nf6 {[%emt 0:01:37]} 3. Bg2 {[%emt 0:00:15]} h6 {[%emt 0:03:31]} 4. Nc3 {[%emt 0:04:03]} Bb4 {[%emt 0:00:24]} 5. e4 {[%emt 0:02:57]} Nc6 {[%emt 0:08:24]} 6. Nge2 {[%emt 0:00:21] A20: English Opening: 1...e5.} Bc5 {[%emt 0:00:12]} 7. O-O {[%emt 0:01:56]} a6 {[%emt 0:03:14]} 8. a3 {[%emt 0:10:38] The position is equal.} d6 {[%emt 0:02:16]} 9. b4 {[%emt 0:00:23]} Ba7 {[%emt 0:00:06]} 10. h3 {[%emt 0:05:16] [#]} h5 $146 {[%emt 0:10:02][%cal Of6g4]} ({Predecessor:} 10... Nd4 11. Rb1 O-O 12. Nxd4 Bxd4 13. Ne2 Ba7 14. d4 Bd7 15. Bb2 Re8 16. Qc2 Qe7 {½-½ (35) Cekro,E (2433)-Jaracz,P (2542) Belgium 2003}) 11. d3 {[%emt 0:09:58]} h4 {[%emt 0:10:49] ...hxg3 is the strong threat.} 12. Bg5 {[%emt 0:09:32]} (12. g4 $11 {was the only way to keep the balance.}) 12... hxg3 $17 {[%emt 0:03:16]} 13. Nxg3 {[%emt 0:00:07][%cal Og3h5]} Nd4 $36 {[%emt 0:17:59][%cal Od4e6][%mdl 2048] Black is in control. Black is more active.} (13... Bxh3 14. Bxh3 Rxh3 15. Kg2 $15) 14. Nd5 {[%emt 0:29:47] [#]} (14. Nh5 $17 Kf8 15. Kh2) 14... c6 $1 $19 {[%emt 0:10:26]} (14... Bxh3 15. Bxh3 Rxh3 16. Bxf6 gxf6 17. Kg2 $11) 15. Bxf6 {[%emt 0:03:33]} gxf6 {[%emt 0:00:15]} 16. Ne3 {[%emt 0:00:06]} Be6 {[%emt 0:05:08]} (16... Bxh3 17. Bxh3 Rxh3 18. Kg2 $15) (16... Kd7 $19 17. a4 Kc7) 17. Nef5 $17 {[%emt 0:04:31]} Qd7 {[%emt 0:10:00]} 18. b5 {[%emt 0:05:54]} (18. Nh5 $17 {keeps fighting.} Qd8 19. Nhg3 (19. Nhg7+ $2 Kd7 $17)) 18... axb5 $19 {[%emt 0:00:52]} 19. cxb5 {[%emt 0:00:10]} Nxb5 {[%emt 0:00:35][%cal Bd4b5,Bb5d4,Bd4f3][%mdl 32]} (19... Nxf5 20. bxc6 Qxc6 21. exf5 $17) (19... cxb5 20. Nh5 Qd8 21. Rb1 (21. Nhg7+ $2 Kf8 $19)) 20. Nh5 {[%emt 0:03:47]} Kd8 {[%emt 0:02:25]} 21. Nxf6 {[%emt 0:00:27]} Qc8 {[%emt 0:00:01]} 22. Qg4 {[%emt 0:04:40]} (22. a4 $142 Bd4 23. Rc1) 22... Nd4 {[%emt 0:01:40]} 23. Rab1 {[%emt 0:02:06]} Kc7 {[%emt 0:00:39]} (23... Bxf5 24. Qg7 Ke7 25. exf5 $17) 24. Rfc1 {[%emt 0:00:33]} Bc5 {[%emt 0:00:18]} (24... Bxf5 25. exf5 Bc5 26. Rxc5 dxc5 27. Qg7 $17) 25. Kh2 {[%emt 0:00:30]} Bxf5 {[%emt 0:03:44]} (25... Rxa3 $2 {perishes.} 26. Rxc5 Bxf5 27. exf5 dxc5 28. Qg3 $19) 26. exf5 {[%emt 0:00:11]} Qxf5 {[%emt 0:00:06] Chess con chili.} ({Weaker is} 26... Bxa3 27. Nd5+ Kb8 28. Ne7 Bxc1 29. Nxc8 Bf4+ 30. Kg1 Rxc8 31. Qg7 $14) 27. Qg7 {[%emt 0:00:28] [#]} (27. Qxf5 $19 Nxf5 28. a4) 27... Nf3+ {[%emt 0:00:25] Weighted Error Value: White=0.61/Black=0.09 (flawless)} ({Don't play} 27... Qxf2 28. Qxf7+ Kc8 29. Qxb7+ Kd8 30. Qd7#) 0-1

[Event "Hungarian Championship Men 2022"]
[Site "Budapest"]
[Date "2022.12.13"]
[Round "9.1"]
[White "Grigoriants, Sergey"]
[Black "Kozak, Adam"]
[Result "1/2-1/2"]
[ECO "C50"]
[WhiteElo "2550"]
[BlackElo "2538"]
[Annotator "TA"]
[PlyCount "34"]
[EventDate "2022.12.03"]
[EventType "tourn"]
[EventCountry "HUN"]
[SourceTitle "playchess.com"]
[Source "ChessBase"]
[SourceQuality "1"]
[TimeControl "40/5400+30:1800+30"]

{[%evp 12,34,10,13,15,9,22,23,22,11,19,19,29,22,30,28,31,16,16,0,26,0,16,0,27]} 1. e4 {[%emt 0:00:33]} e5 {[%emt 0:01:38]} 2. Nf3 {[%emt 0:00:15]} Nc6 {[%emt 0:00:22]} 3. Bc4 {[%emt 0:02:05]} Bc5 {[%emt 0:00:57]} 4. d3 {[%emt 0:00:56]} Nf6 {[%emt 0:00:25]} 5. Nc3 {[%emt 0:01:08]} h6 {[%emt 0:04:59]} 6. h3 {[%emt 0:01:45]} d6 {[%emt 0:04:02]} 7. Na4 {[%emt 0:00:52]} Bb6 {[%emt 0:01:39] C50: Hungarian Defence and Giuoco Pianissimo.} 8. a3 $1 {[%emt 0:00:25][%mdl 4] is more profitable than 8.Nxb6 at the moment.} Be6 {[%emt 0:01:03]} 9. Bxe6 {[%emt 0:03:45]} fxe6 {[%emt 0:00:08] White has an edge.} 10. c3 {[%emt 0:04:42]} O-O {[%emt 0:02:54]} 11. O-O {[%emt 0:01:09]} Qe8 {[%emt 0:00:34]} (11... Ne7 {simplifies} 12. Nxb6 axb6 13. Re1 Ng6) 12. b4 {[%emt 0:06:16]} (12. Bd2 {simplifies} Ne7 13. b4 Ng6 14. Nxb6 axb6 15. a4) 12... Nh5 {[%emt 0:12:17] [#]} (12... Ne7 {simplifies} 13. Nxb6 axb6 14. a4 Ng6) 13. Ra2 $5 $146 {[%emt 0:04:49][%mdl 8] New and interesting.} (13. Nxb6 {simplifies} axb6 14. a4 Ne7 15. Ra2) ({Predecessor:} 13. Kh2 Qf7 14. Nxb6 axb6 15. a4 Nf4 16. Ra2 b5 17. Ne1 Qh5 18. f3 Ra6 19. c4 Rxa4 20. Rxa4 bxa4 21. Qxa4 {1-0 (47) Abdusattorov,N (2688)-Oparin,G (2683) Chess.com INT 2022}) 13... Qg6 {[%emt 0:06:32]} 14. Nh4 {[%emt 0:02:04]} Qf7 {[%emt 0:03:18]} 15. Nf3 {[%emt 0:00:36]} Qg6 {[%emt 0:00:36]} 16. Nh4 {[%emt 0:00:08]} Qf7 {[%emt 0:00:05]} 17. Nf3 {[%emt 0:00:04]} Qg6 {[%emt 0:00:56] An interesting draw.   Weighted Error Value: White=0.10 (very precise) /Black=0.02 (flawless)} 1/2-1/2

[Event "Hungarian Championship Men 2022"]
[Site "Budapest"]
[Date "2022.12.13"]
[Round "9.2"]
[White "Prohaszka, Peter"]
[Black "Korpa, Bence"]
[Result "1-0"]
[ECO "E71"]
[WhiteElo "2562"]
[BlackElo "2500"]
[Annotator "TA"]
[PlyCount "79"]
[EventDate "2022.12.03"]
[EventType "tourn"]
[EventCountry "HUN"]
[SourceTitle "playchess.com"]
[Source "ChessBase"]
[SourceQuality "1"]
[TimeControl "40/5400+30:1800+30"]

{[%evp 16,79,12,0,10,-4,-10,-23,-22,-39,-4,-31,1,-39,74,68,75,26,79,79,87,83,80,35,99,80,63,70,107,77,154,91,104,104,104,104,178,178,204,195,387,375,354,225,236,229,1156,122,389,389,379,373,365,336,852,844,806,806,941,941,913,872,925,627,499,419]} 1. d4 {[%emt 0:00:32] Dautov,Rustem} Nf6 {[%emt 0:07:00]} 2. c4 {[%emt 0:00:06]} g6 {[%emt 0:00:31]} 3. Nc3 {[%emt 0:00:05]} Bg7 {[%emt 0:00:11]} 4. e4 {[%emt 0:00:04]} d6 {[%emt 0:00:08]} 5. h3 {[%emt 0:00:21]} O-O {[%emt 0:00:52]} 6. Be3 {[%emt 0:00:07]} c5 {[%emt 0:15:17]} 7. d5 {[%emt 0:00:23]} e6 {[%emt 0:00:08]} 8. Nf3 $1 {[%emt 0:00:14][%mdl 4] is recently more successful than 8.Bd3.} exd5 {[%emt 0:00:13]} 9. cxd5 {[%emt 0:00:31]} Qe7 {[%emt 0:10:08] A70: Modern Benoni: 6 e4 g6 7 Nf3.} (9... Re8 $5 {[%cal Rf6e4]}) 10. Nd2 {[%emt 0:11:48] [#]} Nxe4 $1 {[%emt 0:16:56] [#]} 11. Ncxe4 $146 {[%emt 0:40:15]} (11. Ndxe4 f5) ({Predecessor:} 11. Ndxe4 f5 12. Nxd6 Qxd6 13. Be2 Bxc3+ 14. bxc3 f4 15. Bc1 Nd7 16. c4 Qf6 17. Rb1 {0-1 (41) Dautov,R (2600)-Psakhis,L (2565) Dresden 1998 CBM 065 [Dautov,Rustem]}) 11... f5 {[%emt 0:00:12] Black has an edge.} 12. Nxd6 {[%emt 0:02:12]} Qxd6 {[%emt 0:09:08]} 13. Be2 {[%emt 0:04:48]} (13. Nc4 $5 {[%cal Rc4d6]} Qa6 14. Nd2 $15 (14. Bxc5 Re8+ 15. Ne3 Qa5+ 16. b4 Qa3 $17)) 13... b5 {[%emt 0:08:53] Prevents Nc4.} 14. O-O {[%emt 0:12:39]} (14. Bxb5 $2 f4 15. Nc4 Qe7 $17) 14... Bb7 {[%emt 0:06:55]} (14... Nd7 $1 $15 {stays ahead.}) 15. Bxb5 $16 {[%emt 0:03:49]} f4 {[%emt 0:01:15] [#]} 16. Nc4 {[%emt 0:05:14]} (16. Ne4 $1 $16 {[%cal Re4d6]} Qxd5 17. Qxd5+ (17. Nxc5 $2 Qxg2#) 17... Bxd5 18. Bxc5 Bxe4 19. Bc4+ Kh8 20. Bxf8 Bxf8 21. Rfe1) 16... Qxd5 {[%emt 0:00:39]} (16... Qe7 $1 $11 {keeps the balance.}) 17. Qxd5+ {[%emt 0:00:19]} Bxd5 {[%emt 0:00:07]} 18. Bxc5 {[%emt 0:00:50]} Rc8 {[%emt 0:03:00]} 19. Ba3 {[%emt 0:01:53] aiming for Nd6.} ({But not} 19. b4 Bxa1 20. Rxa1 Nc6 $14) (19. Bd6 {keeps more tension.} Rxc4 20. Bxc4 Bxc4 21. Rac1) 19... Nc6 {[%emt 0:09:18]} (19... Bxc4 $2 20. Rac1 Be6 21. Rxc8+ Bxc8 22. Bc4+ Kh8 23. Bd5 $18) (19... Rxc4 $14 20. Rfd1 Rd4) 20. Nd6 $36 {[%emt 0:01:04][%mdl 2048] White is really pushing.} Rd8 {[%emt 0:00:38]} 21. Rfc1 {[%emt 0:07:50]} (21. Bxc6 {simplifies} Bxc6 22. Rfd1 Ba4 23. Rd5) 21... Ne5 {[%emt 0:04:20]} 22. Rc7 {[%emt 0:00:46]} f3 {[%emt 0:03:53]} (22... Nf7 $142) 23. g4 {[%emt 0:00:59] White is more active.} ({White should play} 23. Re1 {[%cal Oc7g7] Threatens to win with Rxg7+!} Bf6 24. Ne4) 23... a6 {[%emt 0:00:54]} 24. Bf1 {[%emt 0:00:31] Strongly threatening Re1.} Bf8 {[%emt 0:01:12]} 25. Nc4 {[%emt 0:04:35]} Bxa3 {[%emt 0:00:41]} (25... Bxc4 $16 {was called for.} 26. Bxc4+ Nxc4 27. Bxf8 (27. Rxc4 Bg7 $16) 27... Rdc8 28. Rxc8 Rxc8) 26. Nxa3 $18 {[%emt 0:00:46]} Bf7 {[%emt 0:00:29]} 27. Re1 {[%emt 0:00:14]} Nd3 {[%emt 0:00:18]} (27... Rd7 28. Rc3 Rd5) 28. Ree7 {[%emt 0:00:33]} Bxa2 {[%emt 0:00:12]} 29. Rg7+ {[%emt 0:00:50]} ({Not} 29. Rxh7 Ne5 $18) 29... Kf8 {[%emt 0:00:09]} 30. Rxh7 {[%emt 0:00:22]} Nxb2 $2 {[%emt 0:00:17]} (30... Bg8) 31. Rh8+ $2 {[%emt 0:00:20]} (31. Bc4 Bxc4 32. Nxc4) 31... Bg8 {[%emt 0:00:05] This costs Black the game.} 32. Nc4 {[%emt 0:00:39] White threatens Ne5 and mate.} Rac8 {[%emt 0:01:59]} 33. Rxc8 {[%emt 0:00:18]} Rxc8 {[%emt 0:00:05]} 34. Nxb2 {[%emt 0:00:01][%cal Of1c4] Hoping for Bc4!} Kg7 $2 {[%emt 0:00:12] [#]} (34... Rc1 35. g5 Kg7) 35. Rxg8+ $1 {[%emt 0:00:22] White is clearly winning.} Rxg8 {[%emt 0:00:14]} 36. Bxa6 {[%emt 0:00:05]} Rd8 {[%emt 0:01:22]} 37. Nc4 {[%emt 0:00:39]} Kf6 {[%emt 0:00:00]} 38. Kh2 {[%emt 0:00:14]} Rb8 {[%emt 0:01:07]} 39. Kg3 {[%emt 0:00:21]} Rb4 {[%emt 0:00:08]} 40. Ne3 {[%emt 0:00:00] Weighted Error Value: White=0.46/Black=0.37} ({Less strong is} 40. Kxf3 Ra4 $16) 1-0